lending/lending_fUSD_20250121
["ID","MTS","AMOUNT","RATE_DAILY","PERIOD"]
[349854510,1737461456817,-500.0,0.00020818,2]
[349854511,1737461456828,-740.55,0.00020818,2]
[349854512,1737461456838,-500.0,0.00020818,2]
[349854513,1737461456849,-976.72,0.00020818,2]
[349854514,1737461456860,-1455.68,0.00020818,2]
[349854515,1737461456871,-694.7,0.00020818,2]
[349854516,1737461456882,-500.0,0.00020818,2]
[349854517,1737461456892,-1392.82,0.00020818,2]
[349854518,1737461456902,-1381.5,0.00020818,2]
[349854519,1737461456912,-500.0,0.00020819,2]
[349854520,1737461456921,-500.0,0.00020819,2]
[349854521,1737461456933,-620.26,0.00020819,2]
[349854522,1737461456944,-500.0,0.00020819,2]
[349854523,1737461456955,-500.0,0.00020819,2]
[349854524,1737461456965,-500.0,0.00020819,2]
[349854525,1737461456975,-500.0,0.00020819,2]
[349854526,1737461456986,-621.93,0.00020819,2]
[349854527,1737461456997,-500.0,0.00020819,2]
[349854528,1737461457008,-500.0,0.00020819,2]
[349854529,1737461457017,-500.0,0.00020819,2]
[349854530,1737461457028,-500.0,0.00020819,2]
[349854531,1737461457039,-500.0,0.00020819,2]
[349854532,1737461457050,-500.0,0.00020819,2]
[349854533,1737461457060,-500.0,0.00020819,2]
[349854534,1737461457071,-500.0,0.00020819,2]
[349854535,1737461457081,-500.0,0.00020819,2]
[349854536,1737461457091,-500.0,0.00020819,2]
[349854537,1737461457102,-500.0,0.00020819,2]
[349854538,1737461457113,-500.0,0.00020819,2]
[349854539,1737461457123,-500.0,0.00020819,2]
[349854540,1737461457133,-500.0,0.00020819,2]
[349854541,1737461457143,-500.0,0.00020819,2]
[349854542,1737461457154,-518.45260047,0.00020819,2]
[349854543,1737461457164,-500.0,0.00020819,2]
[349854544,1737461457175,-500.0,0.00020819,2]
[349854545,1737461457185,-500.0,0.00020819,2]
[349854546,1737461457196,-500.0,0.00020819,2]
[349854547,1737461457206,-500.0,0.00020819,2]
[349854548,1737461457216,-500.0,0.00020819,2]
[349854549,1737461457226,-497.6543459,0.00020819,2]
[349854550,1737461457237,-500.0,0.00020819,2]
[349854551,1737461457249,-500.0,0.00020819,2]
[349854552,1737461457259,-500.0,0.00020819,2]
[349854553,1737461457269,-500.0,0.00020819,2]
[349854554,1737461457278,-500.0,0.00020819,2]
[349854555,1737461457289,-500.0,0.00020819,2]
[349854556,1737461457300,-500.0,0.00020819,2]
[349854557,1737461457310,-500.0,0.00020819,2]
[349854558,1737461457320,-500.0,0.00020819,2]
[349854559,1737461457331,-500.0,0.00020819,2]
[349854560,1737461457340,-500.0,0.00020819,2]
[349854561,1737461457351,-500.0,0.00020819,2]
[349854562,1737461457361,-500.0,0.00020819,2]
[349854563,1737461457371,-508.82,0.00020819,2]
[349854564,1737461457381,-500.0,0.00020819,2]
[349854565,1737461457392,-500.0,0.00020819,2]
[349854566,1737461457403,-500.0,0.00020819,2]
[349854567,1737461457413,-500.0,0.00020819,2]
[349854568,1737461457423,-522.84,0.00020819,2]
[349854569,1737461457433,-500.0,0.00020819,2]
[349854570,1737461457443,-500.0,0.00020819,2]
[349854571,1737461457453,-694.48,0.00020819,2]
[349854572,1737461457464,-500.0,0.00020819,2]
[349854573,1737461457475,-1041.86,0.00020819,2]
[349854574,1737461457485,-500.0,0.00020819,2]
[349854575,1737461457495,-500.0,0.00020819,2]
[349854576,1737461457685,-500.0,0.00020819,2]
[349854577,1737461457702,-653.88,0.00020819,2]
[349854578,1737461457713,-500.0,0.00020819,2]
[349854579,1737461457723,-1739.79,0.00020819,2]
[349854580,1737461457733,-500.0,0.00020819,2]
[349854581,1737461457743,-503.07,0.00020819,2]
[349854582,1737461457753,-500.0,0.00020819,2]
[349854583,1737461457763,-500.0,0.00020819,2]
[349854584,1737461457773,-621.93,0.00020819,2]
[349854585,1737461457783,-549.04,0.00020819,2]
[349854586,1737461457794,-500.0,0.00020819,2]
[349854587,1737461457807,-2637.98,0.00020819,2]
[349854588,1737461457816,-513.41,0.00020819,2]
[349854589,1737461457826,-941.37,0.00020819,2]
[349854590,1737461457836,-500.0,0.00020819,2]
[349854591,1737461457846,-679.17,0.00020819,2]
[349854592,1737461457856,-500.0,0.00020819,2]
[349854593,1737461457866,-500.0,0.00020819,2]
[349854594,1737461457875,-500.0,0.00020819,2]
[349854595,1737461457886,-857.08,0.00020819,2]
[349854596,1737461457896,-500.0,0.00020819,2]
[349854597,1737461457905,-2225.12,0.00020819,2]
[349854598,1737461457915,-500.0,0.00020819,2]
[349854599,1737461457925,-500.0,0.00020819,2]
[349854600,1737461457935,-1274.41,0.00020819,2]
[349854601,1737461457945,-500.0,0.00020819,2]
[349854602,1737461457955,-500.0,0.00020819,2]
[349854603,1737461457965,-1449.14,0.00020819,2]
[349854604,1737461457975,-500.0,0.00020819,2]
[349854605,1737461457984,-500.0,0.00020819,2]
[349854606,1737461457994,-500.0,0.00020819,2]
[349854607,1737461458003,-1597.85,0.00020819,2]
[349854608,1737461458012,-459.29527545,0.00020819,2]
[349854609,1737461458022,-500.0,0.00020819,2]
[349854610,1737461458032,-500.0,0.00020819,2]
[349854611,1737461458042,-500.0,0.00020819,2]
[349854612,1737461458054,-741.87,0.00020819,2]
[349854613,1737461458064,-500.0,0.00020819,2]
[349854614,1737461458074,-500.0,0.00020819,2]
[349854615,1737461458083,-1293.86,0.00020819,2]
[349854616,1737461458093,-500.0,0.00020819,2]
[349854617,1737461458103,-500.0,0.00020819,2]
[349854618,1737461458112,-1842.83,0.00020819,2]
[349854619,1737461458122,-500.0,0.00020819,2]
[349854620,1737461458132,-500.0,0.0002082,2]
[349854621,1737461458142,-510.16,0.0002082,2]
[349854622,1737461458151,-514.66,0.0002082,2]
[349854623,1737461458161,-500.0,0.0002082,2]
[349854624,1737461458171,-500.0,0.0002082,2]
[349854625,1737461458181,-500.0,0.0002082,2]
[349854626,1737461458192,-500.0,0.0002082,2]
[349854627,1737461458201,-822.45,0.0002082,2]
[349854628,1737461458213,-500.0,0.0002082,2]
[349854629,1737461458223,-583.99,0.0002082,2]
[349854630,1737461458232,-500.0,0.0002082,2]
[349854631,1737461458242,-500.0,0.0002082,2]
[349854632,1737461458254,-577.76656227,0.0002082,2]
[349854633,1737461458264,-500.0,0.0002082,2]
[349854634,1737461458274,-500.0,0.0002082,2]
[349854635,1737461458284,-500.0,0.0002082,2]
[349854636,1737461458296,-500.0,0.0002082,2]
[349854637,1737461458306,-162.23861977,0.0002082,2]
[349854638,1737461458315,-600.84,0.0002082,2]
[349854639,1737461458325,-500.0,0.0002082,2]
[349854640,1737461458335,-1307.78,0.0002082,2]
[349854641,1737461458344,-500.0,0.0002082,2]
[349854642,1737461458353,-500.0,0.0002082,2]
[349854643,1737461458362,-510.82214671,0.0002082,2]
[349854644,1737461458372,-500.0,0.0002082,2]
[349854645,1737461458381,-316.68412465,0.0002082,2]
[349854646,1737461458390,-500.0,0.0002082,2]
[349854647,1737461458399,-500.0,0.0002082,2]
[349854648,1737461458412,-500.0,0.0002082,2]
[349854649,1737461458423,-500.0,0.0002082,2]
[349854650,1737461458432,-522.28937905,0.0002082,2]
[349854651,1737461458443,-500.0,0.0002082,2]
[349854652,1737461458453,-500.0,0.0002082,2]
[349854653,1737461458463,-500.0,0.00020821,2]
[349854654,1737461458473,-500.0,0.00020821,2]
[349854655,1737461458483,-304.39328572,0.00020821,2]
[349854656,1737461458493,-299.90053579,0.00020821,2]
[349854657,1737461458503,-500.0,0.00020821,2]
[349854658,1737461458513,-500.0,0.00020821,2]
[349854659,1737461458522,-566.77,0.00020821,2]
[349854660,1737461458533,-500.0,0.00020821,2]
[349854661,1737461458543,-151.39429056,0.00020821,2]
[349854662,1737461458554,-500.0,0.00020821,2]
[349854663,1737461458563,-500.0,0.00020821,2]
[349854664,1737461458574,-1039.45,0.00020821,2]
[349854665,1737461458583,-500.0,0.00020821,2]
[349854666,1737461458593,-500.0,0.00020821,2]
[349854667,1737461458603,-500.0,0.00020821,2]
[349854668,1737461458613,-500.0,0.00020821,2]
[349854669,1737461458622,-500.0,0.00020821,2]
[349854670,1737461458631,-500.0,0.00020821,2]
[349854671,1737461458641,-500.0,0.00020821,2]
[349854672,1737461458651,-500.0,0.00020821,2]
[349854673,1737461458661,-500.0,0.00020821,2]
[349854674,1737461458671,-500.0,0.00020821,2]
[349854675,1737461458681,-500.0,0.00020821,2]
[349854676,1737461458691,-500.0,0.00020821,2]
[349854677,1737461458700,-500.0,0.00020821,2]
[349854678,1737461458710,-500.0,0.00020821,2]
[349854679,1737461458720,-500.0,0.00020821,2]
[349854680,1737461458730,-500.0,0.00020821,2]
[349854681,1737461458739,-500.0,0.00020821,2]
[349854682,1737461458748,-500.0,0.00020821,2]
[349854683,1737461458758,-500.0,0.00020821,2]
[349854684,1737461458767,-500.0,0.00020821,2]
[349854685,1737461458777,-500.0,0.00020821,2]
[349854686,1737461458787,-500.0,0.00020821,2]
[349854687,1737461458797,-500.0,0.00020821,2]
[349854688,1737461458808,-1323.74,0.00020821,2]
[349854689,1737461458817,-500.0,0.00020821,2]
[349854690,1737461458827,-500.0,0.00020821,2]
[349854691,1737461458837,-647.7,0.00020821,2]
[349854692,1737461458847,-846.54,0.00020821,2]
[349854693,1737461458858,-719.1,0.00020821,2]
[349854694,1737461458868,-500.0,0.00020821,2]
[349854695,1737461458878,-1158.43,0.00020821,2]
[349854696,1737461458887,-5000.0,0.00020835,2]
[349854697,1737461458897,-150.0,0.00020846,2]
[349854698,1737461458907,-2522.94,0.00020898,2]
[349854699,1737461458916,-161.28,0.000209,2]
[349854700,1737461458926,-2100.0,0.000209,7]
[349854701,1737461458935,-502.67,0.00020903,2]
[349854702,1737461458946,-150.0,0.00020913,2]
[349854703,1737461458956,-5000.0,0.00020918,2]
[349854704,1737461458965,-283.01,0.00020924,2]
[349854705,1737461458975,-5000.0,0.00020925,2]
[349854706,1737461458985,-999.99,0.00020951,2]
[349854707,1737461458995,-150.99,0.00020951,2]
[349854708,1737461459005,-14032.49,0.00020951,2]
[349854709,1737461459015,-20382.85,0.00020951,2]
[349854710,1737461459024,-7170.67,0.00020951,2]
[349854711,1737461459033,-25000.0,0.00020951,2]
[349854712,1737461459043,-5000.0,0.00020952,2]
[349854713,1737461459054,-25000.0,0.00020954,2]
[349854714,1737461459064,-514.66,0.00020957,2]
[349854715,1737461459075,-6667.59248049,0.00020959,2]
[349854716,1737461459085,-177.74927331,0.00020987,2]
[349854717,1737461459095,-206.17630001,0.00020991,2]
[349854718,1737461459105,-524.13,0.00020994,2]
[349854719,1737461459115,-692.62,0.00020995,2]
[349854720,1737461459124,-1336.51,0.00020995,2]
[349854721,1737461459135,-6741.85,0.00020995,2]
[349854722,1737461459144,-615.77,0.00020995,2]
[349854723,1737461459154,-1334.1,0.00020995,2]
[349854724,1737461459164,-1481.38,0.00020995,2]
[349854725,1737461459174,-500.0,0.00020995,2]
[349854726,1737461459184,-2097.97,0.00020995,2]
[349854727,1737461459194,-589.95,0.00020995,2]
[349854728,1737461459205,-500.0,0.00020995,2]
[349854729,1737461459215,-959.96,0.00020995,2]
[349854730,1737461459224,-595.73,0.00020995,2]
[349854731,1737461459234,-500.0,0.00020995,2]
[349854732,1737461459244,-25000.0,0.00020998,2]
[349854733,1737461459256,-1041.40743834,0.0002105,2]
[349854734,1737461459265,-500.0,0.00021092,2]
[349854735,1737461459275,-385.638789,0.00021092,2]
[349854736,1737461459284,-663.07,0.00021092,2]
[349854737,1737461459295,-500.0,0.00021092,2]
[349854738,1737461459305,-670.94,0.00021092,2]
[349854739,1737461459314,-221.865687,0.00021092,2]
[349854740,1737461459324,-646.9,0.00021092,2]
[349854741,1737461459336,-500.0,0.00021092,2]
[349854742,1737461459347,-659.65,0.00021092,2]
[349854743,1737461459356,-1477.39,0.00021092,2]
[349854744,1737461459366,-644.28,0.00021092,2]
[349854745,1737461459377,-732.84,0.00021092,2]
[349854746,1737461459387,-1178.62,0.00021092,2]
[349854747,1737461459397,-500.0,0.00021092,2]
[349854748,1737461459407,-1229.18,0.00021092,2]
[349854749,1737461459417,-939.27,0.00021092,2]
[349854750,1737461459427,-1317.35,0.00021092,2]
[349854751,1737461459437,-1423.55,0.00021092,2]
[349854752,1737461459446,-1041.93,0.00021092,2]
[349854753,1737461459456,-890.96,0.00021092,2]
[349854754,1737461459466,-760.13,0.00021092,2]
[349854755,1737461459477,-739.73,0.00021092,2]
[349854756,1737461459487,-633.13,0.00021092,2]
[349854757,1737461459496,-1676.92,0.00021092,2]
[349854758,1737461459506,-1682.96,0.00021092,2]
[349854759,1737461459515,-1175.89,0.00021092,2]
[349854760,1737461459525,-612.0,0.00021092,2]
[349854761,1737461459535,-581.49,0.00021092,2]
[349854762,1737461459544,-1621.97,0.00021092,2]
[349854763,1737461459555,-500.0,0.00021092,2]
[349854764,1737461459566,-740.55,0.00021092,2]
[349854765,1737461459575,-500.0,0.00021092,2]
[349854766,1737461459585,-976.72,0.00021092,2]
[349854767,1737461459595,-1455.68,0.00021092,2]
[349854768,1737461459605,-694.7,0.00021092,2]
[349854769,1737461459615,-500.0,0.00021092,2]
[349854770,1737461459625,-1392.82,0.00021092,2]
[349854771,1737461459634,-1381.5,0.00021092,2]
[349854772,1737461459644,-500.0,0.00021093,2]
[349854773,1737461459654,-639.03304138,0.00021093,2]
[349854774,1737461459664,-620.26,0.00021093,2]
[349854775,1737461459674,-500.0,0.00021093,2]
[349854776,1737461459684,-500.0,0.00021093,2]
[349854777,1737461459694,-500.0,0.00021093,2]
[349854778,1737461459703,-621.93,0.00021093,2]
[349854779,1737461459713,-500.0,0.00021093,2]
[349854780,1737461459722,-500.19782587,0.00021093,2]
[349854781,1737461459731,-500.0,0.00021093,2]
[349854782,1737461459741,-500.0,0.00021093,2]
[349854783,1737461459751,-500.0,0.00021093,2]
[349854784,1737461459760,-500.0,0.00021093,2]
[349854785,1737461459769,-500.0,0.00021093,2]
[349854786,1737461459779,-500.0,0.00021093,2]
[349854787,1737461459789,-501.05,0.00021093,2]
[349854788,1737461459799,-500.0,0.00021093,2]
[349854789,1737461459808,-500.0,0.00021093,2]
[349854790,1737461459818,-500.0,0.00021093,2]
[349854791,1737461459827,-599.09006711,0.00021093,2]
[349854792,1737461459838,-500.0,0.00021093,2]
[349854793,1737461459847,-500.0,0.00021093,2]
[349854794,1737461459857,-500.0,0.00021093,2]
[349854795,1737461459866,-500.0,0.00021093,2]
[349854796,1737461459877,-500.0,0.00021093,2]
[349854797,1737461459886,-500.0,0.00021093,2]
[349854798,1737461459895,-500.0,0.00021093,2]
[349854799,1737461459905,-500.0,0.00021093,2]
[349854800,1737461459915,-508.82,0.00021093,2]
[349854801,1737461459924,-500.0,0.00021093,2]
[349854802,1737461459934,-500.0,0.00021093,2]
[349854803,1737461459943,-500.0,0.00021093,2]
[349854804,1737461459952,-522.84,0.00021093,2]
[349854805,1737461459962,-500.0,0.00021093,2]
[349854806,1737461459972,-596.92,0.00021093,2]
[349854807,1737461459982,-694.48,0.00021093,2]
[349854808,1737461459992,-500.0,0.00021093,2]
[349854809,1737461460003,-1041.86,0.00021093,2]
[349854810,1737461460014,-500.0,0.00021093,2]
[349854811,1737461460024,-601.81719177,0.00021093,2]
[349854812,1737461460034,-500.0,0.00021093,2]
[349854813,1737461460090,-653.88,0.00021093,2]
[349854814,1737461460101,-500.0,0.00021093,2]
[349854815,1737461460111,-1739.79,0.00021093,2]
[349854816,1737461460122,-596.09,0.00021093,2]
[349854817,1737461460131,-361.6371953,0.00021093,2]
[349854818,1737461460141,-621.93,0.00021093,2]
[349854819,1737461460151,-2637.98,0.00021093,2]
[349854820,1737461460161,-941.37,0.00021093,2]
[349854821,1737461460171,-269.98235798,0.00021093,2]
[349854822,1737461460181,-679.17,0.00021093,2]
[349854823,1737461460191,-500.0,0.00021093,2]
[349854824,1737461460201,-500.0,0.00021093,2]
[349854825,1737461460211,-857.08,0.00021093,2]
[349854826,1737461460221,-500.0,0.00021093,2]
[349854827,1737461460231,-2225.12,0.00021093,2]
[349854828,1737461460240,-500.0,0.00021093,2]
[349854829,1737461460252,-500.0,0.00021093,2]
[349854830,1737461460263,-1274.41,0.00021093,2]
[349854831,1737461460272,-500.0,0.00021093,2]
[349854832,1737461460282,-500.0,0.00021093,2]
[349854833,1737461460293,-1449.14,0.00021093,2]
[349854834,1737461460306,-500.0,0.00021093,2]
[349854835,1737461460316,-500.0,0.00021093,2]
[349854836,1737461460326,-500.0,0.00021093,2]
[349854837,1737461460336,-1597.85,0.00021093,2]
[349854838,1737461460346,-500.0,0.00021093,2]
[349854839,1737461460356,-500.0,0.00021093,2]
[349854840,1737461460365,-500.0,0.00021093,2]
[349854841,1737461460375,-741.87,0.00021093,2]
[349854842,1737461460385,-500.0,0.00021093,2]
[349854843,1737461460395,-500.0,0.00021093,2]
[349854844,1737461460404,-1293.86,0.00021093,2]
[349854845,1737461460414,-500.0,0.00021093,2]
[349854846,1737461460424,-500.0,0.00021093,2]
[349854847,1737461460434,-1842.83,0.00021093,2]
[349854848,1737461460443,-273.75883142,0.00021093,2]
[349854849,1737461460453,-500.0,0.00021094,2]
[349854850,1737461460463,-510.16,0.00021094,2]
[349854851,1737461460472,-514.66,0.00021094,2]
[349854852,1737461460481,-500.0,0.00021094,2]
[349854853,1737461460492,-500.0,0.00021094,2]
[349854854,1737461460502,-500.0,0.00021094,2]
[349854855,1737461460511,-822.45,0.00021094,2]
[349854856,1737461460521,-500.0,0.00021094,2]
[349854857,1737461460530,-583.99,0.00021094,2]
[349854858,1737461460539,-500.0,0.00021094,2]
[349854859,1737461460549,-500.0,0.00021094,2]
[349854860,1737461460558,-500.0,0.00021094,2]
[349854861,1737461460567,-500.0,0.00021094,2]
[349854862,1737461460577,-500.0,0.00021094,2]
[349854863,1737461460586,-500.0,0.00021094,2]
[349854864,1737461460595,-600.84,0.00021094,2]
[349854865,1737461460604,-330.04490682,0.00021094,2]
[349854866,1737461460614,-1307.78,0.00021094,2]
[349854867,1737461460623,-500.0,0.00021094,2]
[349854868,1737461460632,-500.0,0.00021094,2]
[349854869,1737461460641,-500.0,0.00021094,2]
[349854870,1737461460650,-500.0,0.00021095,2]
[349854871,1737461460660,-500.0,0.00021095,2]
[349854872,1737461460669,-500.0,0.00021095,2]
[349854873,1737461460679,-217.06571422,0.00021095,2]
[349854874,1737461460688,-566.77,0.00021095,2]
[349854875,1737461460697,-500.0,0.00021095,2]
[349854876,1737461460707,-1039.45,0.00021095,2]
[349854877,1737461460716,-500.0,0.00021095,2]
[349854878,1737461460725,-160.25610185,0.00021095,2]
[349854879,1737461460735,-500.0,0.00021095,2]
[349854880,1737461460743,-500.0,0.00021095,2]
[349854881,1737461460753,-500.0,0.00021095,2]
[349854882,1737461460763,-616.9,0.00021095,2]
[349854883,1737461460772,-500.0,0.00021095,2]
[349854884,1737461460782,-500.0,0.00021095,2]
[349854885,1737461460790,-500.0,0.00021095,2]
[349854886,1737461460801,-500.0,0.00021095,2]
[349854887,1737461460810,-624.26433269,0.00021095,2]
[349854888,1737461460820,-369.09098925,0.00021095,2]
[349854889,1737461460829,-500.0,0.00021095,2]
[349854890,1737461460838,-500.0,0.00021095,2]
[349854891,1737461460847,-500.0,0.00021095,2]
[349854892,1737461460856,-500.0,0.00021095,2]
[349854893,1737461460866,-500.0,0.00021095,2]
[349854894,1737461460875,-500.0,0.00021095,2]
[349854895,1737461460884,-1323.74,0.00021095,2]
[349854896,1737461460893,-500.0,0.00021095,2]
[349854897,1737461460903,-647.7,0.00021095,2]
[349854898,1737461460912,-846.54,0.00021095,2]
[349854899,1737461460922,-719.1,0.00021095,2]
[349854900,1737461460931,-500.0,0.00021095,2]
[349854901,1737461460940,-1158.43,0.00021095,2]
[349854902,1737461460949,-150.0,0.0002113,2]
[349854903,1737461460959,-150.0,0.00021142,2]
[349854904,1737461460968,-150.0,0.00021153,2]
[349854905,1737461460977,-150.0,0.0002116,2]
[349854906,1737461460986,-150.0,0.00021162,2]
[349854907,1737461460996,-206.17630001,0.00021173,2]
[349854908,1737461461006,-152.48,0.00021178,2]
[349854909,1737461461015,-865.21,0.00021178,2]
[349854910,1737461461025,-298.01,0.00021178,2]
[349854911,1737461461035,-298.01,0.00021178,2]
[349854912,1737461461044,-981.79,0.00021178,2]
[349854913,1737461461055,-150.0,0.00021178,2]
[349854914,1737461461065,-150.0,0.00021178,2]
[349854915,1737461461075,-150.0,0.00021178,2]
[349854916,1737461461084,-150.0,0.00021178,2]
[349854917,1737461461093,-437.71,0.00021178,2]
[349854918,1737461461102,-298.01,0.00021178,2]
[349854919,1737461461112,-150.0,0.00021178,2]
[349854920,1737461461121,-150.0,0.00021178,2]
[349854921,1737461461131,-150.0,0.00021178,2]
[349854922,1737461461140,-437.71,0.00021178,2]
[349854923,1737461461149,-150.0,0.00021178,2]
[349854924,1737461461159,-981.79,0.00021178,2]
[349854925,1737461461168,-150.0,0.00021178,2]
[349854926,1737461461178,-150.0,0.00021178,2]
[349854927,1737461461188,-437.71,0.00021178,2]
[349854928,1737461461197,-981.79,0.00021178,2]
[349854929,1737461461207,-150.0,0.00021178,2]
[349854930,1737461461216,-150.0,0.00021178,2]
[349854931,1737461461226,-150.0,0.00021178,2]
[349854932,1737461461235,-150.0,0.00021178,2]
[349854933,1737461461246,-150.0,0.00021178,2]
[349854934,1737461461259,-150.0,0.00021178,2]
[349854935,1737461461268,-150.0,0.00021178,2]
[349854936,1737461461278,-150.0,0.00021178,2]
[349854937,1737461461287,-437.71,0.00021178,2]
[349854938,1737461461299,-981.79,0.00021178,2]
[349854939,1737461461308,-150.0,0.00021178,2]
[349854940,1737461461318,-437.71,0.00021178,2]
[349854941,1737461461327,-150.0,0.00021178,2]
[349854942,1737461461337,-150.0,0.00021178,2]
[349854943,1737461461346,-150.0,0.00021178,2]
[349854944,1737461461355,-150.0,0.00021178,2]
[349854945,1737461461363,-981.79,0.00021178,2]
[349854946,1737461461374,-150.0,0.00021178,2]
[349854947,1737461461383,-150.0,0.00021178,2]
[349854948,1737461461393,-110000.0,0.000212,3]
[349854949,1737461461402,-514.66,0.00021231,2]
[349854950,1737461461412,-524.13,0.00021268,2]
[349854951,1737461461422,-692.62,0.00021269,2]
[349854952,1737461461431,-1336.51,0.00021269,2]
[349854953,1737461461441,-6741.85,0.00021269,2]
[349854954,1737461461450,-615.77,0.00021269,2]
[349854955,1737461461459,-1334.1,0.00021269,2]
[349854956,1737461461469,-1481.38,0.00021269,2]
[349854957,1737461461478,-500.0,0.00021269,2]
[349854958,1737461461487,-2097.97,0.00021269,2]
[349854959,1737461461496,-589.95,0.00021269,2]
[349854960,1737461461506,-500.0,0.00021269,2]
[349854961,1737461461515,-959.96,0.00021269,2]
[349854962,1737461461524,-595.73,0.00021269,2]
[349854963,1737461461533,-500.0,0.00021269,2]
[349854964,1737461461542,-6667.59248049,0.00021273,2]
[349854965,1737461461553,-177.74927331,0.00021291,2]
[349854966,1737461461562,-2600.0,0.000213,7]
[349854967,1737461461572,-1000.0,0.000213,2]
[349854968,1737461461581,-805.55555556,0.00021315,2]
[349854969,1737461461591,-1041.40743834,0.00021333,2]
[349854970,1737461461600,-206.17630001,0.00021355,2]
[349854971,1737461461609,-150.0,0.0002136,2]
[349854972,1737461461619,-500.0,0.00021366,2]
[349854973,1737461461629,-385.638789,0.00021366,2]
[349854974,1737461461639,-663.07,0.00021366,2]
[349854975,1737461461648,-500.0,0.00021366,2]
[349854976,1737461461658,-670.94,0.00021366,2]
[349854977,1737461461668,-221.865687,0.00021366,2]
[349854978,1737461461677,-646.9,0.00021366,2]
[349854979,1737461461687,-500.0,0.00021366,2]
[349854980,1737461461696,-659.65,0.00021366,2]
[349854981,1737461461706,-1477.39,0.00021366,2]
[349854982,1737461461715,-644.28,0.00021366,2]
[349854983,1737461461724,-732.84,0.00021366,2]
[349854984,1737461461734,-1178.62,0.00021366,2]
[349854985,1737461461743,-500.0,0.00021366,2]
[349854986,1737461461752,-1229.18,0.00021366,2]
[349854987,1737461461762,-939.27,0.00021366,2]
[349854988,1737461461771,-1317.35,0.00021366,2]
[349854989,1737461461781,-1423.55,0.00021366,2]
[349854990,1737461461790,-1041.93,0.00021366,2]
[349854991,1737461461801,-890.96,0.00021366,2]
[349854992,1737461461811,-760.13,0.00021366,2]
[349854993,1737461461820,-739.73,0.00021366,2]
[349854994,1737461461830,-633.13,0.00021366,2]
[349854995,1737461461839,-1676.92,0.00021366,2]
[349854996,1737461461848,-1682.96,0.00021366,2]
[349854997,1737461461858,-1175.89,0.00021366,2]
[349854998,1737461461867,-612.0,0.00021366,2]
[349854999,1737461461877,-581.49,0.00021366,2]
[349855000,1737461461886,-1621.97,0.00021366,2]
[349855001,1737461461896,-500.0,0.00021366,2]
[349855002,1737461461905,-740.55,0.00021366,2]
[349855003,1737461461915,-500.0,0.00021366,2]
[349855004,1737461461925,-976.72,0.00021366,2]
[349855005,1737461461934,-1455.68,0.00021366,2]
[349855006,1737461461944,-694.7,0.00021366,2]
[349855007,1737461461954,-500.0,0.00021366,2]
[349855008,1737461461963,-1392.82,0.00021366,2]
[349855009,1737461461972,-1381.5,0.00021366,2]